bitfinex/quotes_BTCUSD_20251012
["timestamp","ask_amount","ask_price","bid_price","bid_amount"]
[1760293814872,5.01384391,114140.0,114130.0,0.00056466]
[1760293815130,5.01484391,114140.0,114130.0,0.00056466]
[1760293815337,5.0069169,114140.0,114130.0,0.00056466]
[1760293815477,0.7516409,114140.0,114130.0,0.00056466]
[1760293816188,5.0069169,114140.0,114130.0,0.00056466]
[1760293816425,0.7516409,114140.0,114130.0,0.00056466]
[1760293816636,5.0069169,114140.0,114130.0,0.00056466]
[1760293817391,0.7516409,114140.0,114130.0,0.00056466]
[1760293817646,5.0069169,114140.0,114130.0,0.00056466]
[1760293819738,5.0059169,114140.0,114130.0,0.00056466]
[1760293819938,0.7506409,114140.0,114130.0,0.00056466]
[1760293820173,5.0069169,114140.0,114130.0,0.00056466]
[1760293820374,5.0059169,114140.0,114130.0,0.00056466]
[1760293820603,4.97440031,114140.0,114130.0,0.00056466]
[1760293820896,0.72012431,114140.0,114130.0,0.00056466]
[1760293821198,4.97540031,114140.0,114130.0,0.00056466]
[1760293821716,4.97340031,114140.0,114130.0,0.00056466]
[1760293822119,4.97440031,114140.0,114130.0,0.00056466]
[1760293822684,0.71912431,114140.0,114130.0,0.00056466]
[1760293822917,4.97440031,114140.0,114130.0,0.00056466]
[1760293824275,4.98251906,114140.0,114130.0,0.00056466]
[1760293824484,5.00590533,114140.0,114130.0,0.00056466]
[1760293824686,0.75062933,114140.0,114130.0,0.00056466]
[1760293824889,5.00590533,114140.0,114130.0,0.00056466]
[1760293825093,5.00490533,114140.0,114130.0,0.00056466]
[1760293825403,0.75062933,114140.0,114130.0,0.00056466]
[1760293825619,5.00590533,114140.0,114130.0,0.00056466]
[1760293826254,5.03721861,114140.0,114130.0,0.00056466]
[1760293826785,0.78294261,114140.0,114130.0,0.00056466]
[1760293826966,5.03821861,114140.0,114130.0,0.00056466]
[1760293827114,0.78294261,114140.0,114130.0,0.00056466]
[1760293827512,5.03821861,114140.0,114130.0,0.00056466]
[1760293828356,0.78294261,114140.0,114130.0,0.00056466]
[1760293828776,5.03821861,114140.0,114130.0,0.00056466]
[1760293828971,0.78294261,114140.0,114130.0,0.00056466]
[1760293829176,5.00690533,114140.0,114130.0,0.00056466]
[1760293829572,0.78294261,114140.0,114130.0,0.00056466]
[1760293829801,5.00690533,114140.0,114130.0,0.00056466]
[1760293830003,0.75162933,114140.0,114130.0,0.00056466]
[1760293830207,5.00690533,114140.0,114130.0,0.00056466]
[1760293831220,5.00590533,114140.0,114130.0,0.00056466]
[1760293831437,5.00490533,114140.0,114130.0,0.00056466]
[1760293831601,5.00590533,114140.0,114130.0,0.00056466]
[1760293832622,0.75062933,114140.0,114130.0,0.00056466]
[1760293832769,5.00590533,114140.0,114130.0,0.00056466]
[1760293833186,0.75062933,114140.0,114130.0,0.00056466]
[1760293833396,5.00590533,114140.0,114130.0,0.00056466]
[1760293835153,0.75062933,114140.0,114130.0,0.00056466]
[1760293835747,5.00590533,114140.0,114130.0,0.00056466]
[1760293837159,0.75062933,114140.0,114130.0,0.00056466]
[1760293837535,5.00590533,114140.0,114130.0,0.00056466]
[1760293837936,0.78194261,114140.0,114130.0,0.00056466]
[1760293838136,5.03721861,114140.0,114130.0,0.00056466]
[1760293839339,4.86199521,114140.0,114130.0,0.00056466]
[1760293839658,4.27501961,114140.0,114130.0,0.30189342]
[1760293839938,0.341,114140.0,114130.0,0.30189342]
[1760293840138,4.256276,114140.0,114130.0,0.30189342]
[1760293840350,4.256276,114140.0,114130.0,0.35662311]
[1760293840552,4.255276,114140.0,114130.0,0.30189342]
[1760293841344,4.595276,114140.0,114130.0,0.30189342]
[1760293845535,0.6709353,114140.0,114130.0,0.00056466]
[1760293845956,4.9262113,114140.0,114130.0,0.00056466]
[1760293846550,0.6709353,114140.0,114130.0,0.00056466]
[1760293847026,4.9262113,114140.0,114130.0,0.00056466]
[1760293847309,0.6709353,114140.0,114130.0,0.00056466]
[1760293847690,4.9262113,114140.0,114130.0,0.00056466]
[1760293847889,0.6709353,114140.0,114130.0,0.00056466]
[1760293848092,4.9262113,114140.0,114130.0,0.00056466]
[1760293849909,4.9262113,114140.0,114130.0,0.17580342]
[1760293849910,4.8677013,114140.0,114130.0,0.17580342]
[1760293850134,4.9262113,114140.0,114130.0,0.17580342]
[1760293850334,4.8677013,114140.0,114130.0,0.17580342]
[1760293850535,4.9262113,114140.0,114130.0,0.17580342]
[1760293850933,4.8677013,114140.0,114130.0,0.17580342]
[1760293851140,4.8677013,114140.0,114130.0,0.21461342]
[1760293851768,0.6124253,114140.0,114130.0,0.21461342]
[1760293851976,4.8677013,114140.0,114130.0,0.21461342]
[1760293853051,0.6124253,114140.0,114130.0,0.17580342]
[1760293853566,4.595276,114140.0,114130.0,0.3275507]
[1760293856403,4.595276,114140.0,114130.0,0.30127342]
[1760293856984,0.34,114140.0,114130.0,0.30127342]
[1760293863219,4.973e-05,114150.0,114140.0,0.1752234]
[1760293863427,4.973e-05,114150.0,114140.0,0.2621734]
[1760293863636,4.973e-05,114150.0,114140.0,0.3000134]
[1760293863850,4.973e-05,114150.0,114140.0,0.35050908]
[1760293867572,0.34004973,114150.0,114140.0,0.35050908]
[1760293868913,4.973e-05,114150.0,114140.0,0.35050908]
[1760293874187,0.34004973,114150.0,114140.0,0.35050908]
[1760293874376,4.973e-05,114150.0,114140.0,0.35050908]
[1760293874599,0.34004973,114150.0,114140.0,0.35050908]
[1760293875101,4.59532573,114150.0,114140.0,0.3000134]
[1760293877712,4.973e-05,114150.0,114140.0,0.3000134]
[1760293880035,4.973e-05,114150.0,114140.0,0.8169977]
[1760293880931,4.973e-05,114150.0,114140.0,0.3000134]
[1760293881379,4.973e-05,114150.0,114140.0,0.8169977]
[1760293881586,4.973e-05,114150.0,114140.0,0.38873274]
[1760293881725,4.973e-05,114150.0,114140.0,0.90571704]
[1760293888571,4.973e-05,114150.0,114140.0,0.96955381]
[1760293889657,4.973e-05,114150.0,114140.0,0.9945538]
[1760293889875,4.973e-05,114150.0,114140.0,1.76490438]
[1760293890095,4.973e-05,114150.0,114140.0,0.60326224]
[1760293890303,4.973e-05,114150.0,114140.0,1.76490438]
[1760293891410,4.973e-05,114150.0,114140.0,1.18408331]
[1760293892740,4.973e-05,114150.0,114140.0,1.18608331]
[1760293893644,4.973e-05,114150.0,114140.0,1.18708331]
[1760293894495,4.973e-05,114150.0,114140.0,1.76790438]
[1760293895071,4.973e-05,114150.0,114140.0,1.18708331]
[1760293896128,4.973e-05,114150.0,114140.0,1.09755379]
[1760293896864,4.973e-05,114150.0,114140.0,1.09655379]
[1760293897338,4.973e-05,114150.0,114140.0,1.09555379]
[1760293897586,4.973e-05,114150.0,114140.0,0.41473273]
[1760293897826,4.973e-05,114150.0,114140.0,0.9975538]
[1760293898072,4.973e-05,114150.0,114140.0,1.09755379]
[1760293899853,4.973e-05,114150.0,114140.0,1.18708331]
[1760293900678,4.973e-05,114150.0,114140.0,1.76790438]
[1760293900897,4.973e-05,114150.0,114140.0,1.18708331]
[1760293901369,4.973e-05,114150.0,114140.0,0.60626224]
[1760293901567,4.973e-05,114150.0,114140.0,1.18708331]
[1760293903551,4.973e-05,114150.0,114140.0,0.60626224]
[1760293903752,4.973e-05,114150.0,114140.0,1.18708331]
[1760293908205,4.973e-05,114150.0,114140.0,0.51673272]
[1760293908406,4.973e-05,114150.0,114140.0,0.39173274]
[1760293908613,4.973e-05,114150.0,114140.0,0.97255381]
[1760293910538,4.973e-05,114150.0,114140.0,0.39173274]
[1760293910750,4.973e-05,114150.0,114140.0,1.01463381]
[1760293910951,4.973e-05,114150.0,114140.0,0.43381274]
[1760293917504,4.973e-05,114150.0,114140.0,1.01463381]
[1760293918102,4.973e-05,114150.0,114140.0,1.0396338]
[1760293918282,4.973e-05,114150.0,114140.0,1.62045487]
[1760293918479,4.973e-05,114150.0,114140.0,1.70998439]
[1760293918706,4.973e-05,114150.0,114140.0,1.84013628]
[1760293921583,4.973e-05,114150.0,114140.0,2.18013628]
[1760293922220,4.973e-05,114150.0,114140.0,2.17913628]
[1760293922589,4.973e-05,114150.0,114140.0,2.18013628]
[1760293923199,4.973e-05,114150.0,114140.0,2.17813628]
[1760293923403,4.973e-05,114150.0,114140.0,2.18013628]
[1760293923603,4.973e-05,114150.0,114140.0,2.17913628]
[1760293924116,4.973e-05,114150.0,114140.0,2.18213628]
[1760293924608,4.973e-05,114150.0,114140.0,2.76295735]
[1760293925011,4.973e-05,114150.0,114140.0,2.86295734]
[1760293926347,0.84036798,114210.0,114200.0,0.17513134]
[1760293926533,4.59579325,114210.0,114200.0,0.31563447]
[1760293927497,0.00051725,114210.0,114200.0,1.47727661]
[1760293927718,0.00051725,114210.0,114200.0,0.92245553]
[1760293927719,1e-08,114210.0,114200.0,0.92245553]
[1760293928292,1e-08,114210.0,114200.0,1.01198505]
[1760293928864,1e-08,114210.0,114200.0,1.01398505]
[1760293929641,1e-08,114210.0,114200.0,1.01298505]
[1760293929771,1e-08,114210.0,114200.0,1.01398505]
[1760293930537,1e-08,114210.0,114200.0,0.43316398]
[1760293930687,1e-08,114210.0,114200.0,1.01398505]
[1760293931196,1e-08,114210.0,114200.0,1.69480611]
[1760293932378,1e-08,114210.0,114200.0,2.06495801]
[1760293934017,1e-08,114210.0,114200.0,2.03480611]
[1760293937758,1e-08,114210.0,114200.0,1.45398504]
[1760293938920,1e-08,114210.0,114200.0,0.53316397]
[1760293939121,1e-08,114210.0,114200.0,1.01398505]
[1760293939328,1e-08,114210.0,114200.0,1.11398504]
[1760293940820,1e-08,114210.0,114200.0,0.53316397]
[1760293941061,1e-08,114210.0,114200.0,1.11398504]
[1760293941265,1e-08,114210.0,114200.0,0.57524397]
[1760293941505,1e-08,114210.0,114200.0,0.47524398]
[1760293941741,1e-08,114210.0,114200.0,0.36071447]
[1760293941926,1e-08,114210.0,114200.0,0.38571446]
[1760293942248,1e-08,114210.0,114200.0,0.96653553]
[1760293944318,1e-08,114210.0,114200.0,0.38571446]
[1760293944524,1e-08,114210.0,114200.0,0.96653553]
[1760293947227,1e-08,114210.0,114200.0,0.38571446]
[1760293947635,1e-08,114210.0,114200.0,0.96653553]
[1760293947855,1e-08,114210.0,114200.0,1.5473566]
[1760293948066,1e-08,114210.0,114200.0,0.96653553]
[1760293950487,1e-08,114210.0,114200.0,0.90144694]
[1760293951781,1e-08,114210.0,114200.0,0.38571446]
[1760293951980,1e-08,114210.0,114200.0,0.90144694]
[1760293956137,1e-08,114210.0,114200.0,0.38571446]
[1760293958612,1e-08,114210.0,114200.0,0.90144694]
[1760293965245,1e-08,114210.0,114200.0,0.36071447]
[1760293965443,4.25527601,114210.0,114200.0,0.36071447]
[1760293965652,1e-08,114210.0,114200.0,0.36071447]
[1760293965994,4.25527601,114210.0,114200.0,0.36071447]
[1760293966600,4.25527601,114210.0,114200.0,0.87644695]
[1760293966601,1e-08,114210.0,114200.0,0.87644695]
[1760293967994,1e-08,114210.0,114200.0,0.36071447]
[1760293969965,1e-08,114210.0,114200.0,0.87644695]
[1760293970423,1e-08,114210.0,114200.0,0.36071447]
[1760293970652,1e-08,114210.0,114200.0,0.87644695]
[1760293971056,1e-08,114210.0,114200.0,0.36071447]
[1760293975641,1e-08,114210.0,114200.0,0.87644695]
[1760293976624,1e-08,114210.0,114200.0,0.36071447]
[1760293977018,1e-08,114210.0,114200.0,0.87644695]
[1760293980017,1e-08,114210.0,114200.0,0.36071447]
[1760293981467,1e-08,114210.0,114200.0,0.87644695]
[1760293983189,1e-08,114210.0,114200.0,0.36071447]
[1760293983398,1e-08,114210.0,114200.0,0.87644695]
[1760293983814,1e-08,114210.0,114200.0,0.36071447]
[1760293984061,1e-08,114210.0,114200.0,0.87644695]
[1760293984476,1e-08,114210.0,114200.0,0.36071447]
[1760293985105,4.25527601,114210.0,114200.0,0.36071447]
[1760293985518,1e-08,114210.0,114200.0,0.36071447]
[1760293985815,4.25527601,114210.0,114200.0,0.36071447]
[1760293985955,1e-08,114210.0,114200.0,0.36071447]
[1760293986363,4.25527601,114210.0,114200.0,0.36071447]
[1760293986761,4.25527601,114210.0,114200.0,0.87644695]
[1760293986963,1e-08,114210.0,114200.0,0.87644695]
[1760293987214,1e-08,114210.0,114200.0,1.14634695]
[1760293987622,4.25527601,114210.0,114200.0,1.14634695]
[1760293988189,1e-08,114210.0,114200.0,1.14634695]
[1760293988526,4.25527601,114210.0,114200.0,1.14634695]
[1760293988723,1e-08,114210.0,114200.0,1.14634695]
[1760293989122,4.25527601,114210.0,114200.0,0.63061447]
[1760293989701,1e-08,114210.0,114200.0,0.63061447]
[1760293989903,4.25527601,114210.0,114200.0,0.63061447]
[1760293990853,4.83249202,114210.0,114200.0,0.07209]
[1760293991066,4.88479202,114210.0,114200.0,0.04508]
[1760293991236,4.91113219,114210.0,114200.0,0.04508]
[1760293991843,4.91113219,114210.0,114200.0,0.04308]
[1760293992066,4.92994881,114210.0,114200.0,0.04308]
[1760293992262,0.65585619,114210.0,114200.0,0.04208]
[1760293992469,4.91113219,114210.0,114200.0,0.04208]
[1760293992872,4.91113219,114210.0,114200.0,0.21721134]
[1760293993490,0.65585619,114210.0,114200.0,0.21721134]
[1760293993691,4.91113219,114210.0,114200.0,0.21721134]
[1760293993843,0.68600809,114210.0,114200.0,0.04208]
[1760293994042,4.94128409,114210.0,114200.0,0.04208]
[1760293994858,0.68600809,114210.0,114200.0,0.04208]
[1760293995484,4.94128409,114210.0,114200.0,0.04208]
[1760293995661,0.68600809,114210.0,114200.0,0.04208]
[1760293995866,4.94128409,114210.0,114200.0,0.04208]
[1760293996272,0.68600809,114210.0,114200.0,0.04208]
[1760293996791,0.68600809,114210.0,114170.0,0.03084]
[1760293996792,0.51516202,114180.0,114170.0,0.03084]
[1760293997112,4.82258802,114180.0,114170.0,0.14454362]
[1760293997252,4.90503992,114180.0,114170.0,0.07292]
[1760293997652,4.79678643,114180.0,114170.0,0.35972736]
[1760293997873,4.83380643,114180.0,114170.0,0.30776736]
[1760293998623,0.57853043,114180.0,114170.0,0.24809736]
[1760293998825,4.88610643,114180.0,114170.0,0.07292]
[1760293999024,4.91625833,114180.0,114170.0,0.07292]
[1760293999463,0.66098233,114180.0,114170.0,0.07292]
[1760294000002,4.91625833,114180.0,114170.0,0.07292]
[1760294000548,4.91625833,114180.0,114170.0,0.24809736]
[1760294001750,0.66098233,114180.0,114170.0,0.24809736]
[1760294001952,4.91625833,114180.0,114170.0,0.24809736]
[1760294002374,4.91625833,114180.0,114170.0,0.07292]
[1760294002573,4.91625833,114180.0,114170.0,0.24809736]
[1760294003655,4.91625833,114180.0,114170.0,0.07292]
[1760294004001,0.66098233,114180.0,114170.0,0.07292]
[1760294004206,4.91625833,114180.0,114170.0,0.07292]
[1760294006389,0.66098233,114180.0,114170.0,0.07292]
[1760294006541,4.91625833,114180.0,114170.0,0.07292]
[1760294007803,0.66098233,114180.0,114170.0,0.07292]
[1760294008022,4.91625833,114180.0,114170.0,0.07292]
[1760294009342,4.91625833,114180.0,114170.0,0.24809736]
[1760294009562,4.91625833,114180.0,114170.0,0.07292]
[1760294009785,4.91625833,114180.0,114170.0,0.24809736]
[1760294010871,0.66098233,114180.0,114170.0,0.24809736]
[1760294011084,4.91625833,114180.0,114170.0,0.24809736]
[1760294012404,0.66098233,114180.0,114170.0,0.24809736]
[1760294012612,4.91625833,114180.0,114170.0,0.24809736]
[1760294012824,0.66098233,114180.0,114170.0,0.24809736]
[1760294013158,4.91625833,114180.0,114170.0,0.07292]
[1760294013353,0.66098233,114180.0,114170.0,0.07292]
[1760294013554,4.91625833,114180.0,114170.0,0.24809736]
[1760294014538,4.91625833,114180.0,114170.0,0.07292]
[1760294015779,0.66098233,114180.0,114170.0,0.07292]
[1760294015992,4.91625833,114180.0,114170.0,0.24809736]
[1760294017124,4.93499755,114180.0,114170.0,0.24809736]
[1760294017354,4.94313103,114180.0,114170.0,0.24809736]
[1760294017584,4.94313103,114180.0,114170.0,0.21725736]
[1760294019111,4.64849711,114180.0,114170.0,0.91398752]
[1760294019310,4.28162441,114180.0,114170.0,0.33304736]
[1760294019611,4.28162441,114180.0,114170.0,0.91398752]
[1760294020185,4.62162441,114180.0,114170.0,0.33304736]
[1760294020592,0.02634841,114180.0,114170.0,0.91398752]
[1760294020790,4.25527601,114210.0,114200.0,0.17513134]
[1760294020996,4.282216,114210.0,114200.0,0.29092134]
[1760294021202,4.30855777,114210.0,114200.0,0.29092134]
[1760294021408,4.28977171,114210.0,114200.0,0.8718615]
[1760294021610,4.62977171,114210.0,114200.0,0.29092134]
[1760294021976,0.03449571,114210.0,114200.0,0.96058084]
[1760294022864,1e-08,114210.0,114200.0,0.96058084]
[1760294023065,0.34000001,114210.0,114200.0,0.96058084]
[1760294024180,0.34000001,114210.0,114200.0,0.96158084]
[1760294024773,0.34000001,114210.0,114200.0,0.96258084]
[1760294028372,4.25527601,114210.0,114200.0,0.96258084]
[1760294028808,3.83889832,114210.0,114200.0,0.96258084]
[1760294029010,3.839099,114240.0,114230.0,0.17508535]
[1760294029218,3.839099,114240.0,114230.0,0.23493535]
[1760294029413,4.179099,114240.0,114230.0,0.28590535]
[1760294029626,4.20712447,114240.0,114230.0,0.28590535]
[1760294035509,4.38219449,114240.0,114230.0,0.28590535]
[1760294035725,4.41751449,114240.0,114230.0,0.23493535]
[1760294037245,4.41751449,114240.0,114210.0,0.02531]
[1760294037246,0.17510068,114220.0,114210.0,0.02531]
[1760294037428,3.60194201,114210.0,114190.0,0.2720803]
[1760294037613,3.60194201,114210.0,114190.0,0.27222957]
[1760294037614,4.203979,114200.0,114190.0,0.27222957]
[1760294037811,4.239299,114200.0,114190.0,0.23514595]
[1760294038017,4.26563998,114200.0,114190.0,0.23514595]
[1760294038205,4.23031998,114200.0,114190.0,0.28611595]
[1760294041302,4.26473998,114200.0,114190.0,0.28611595]
[1760294041522,4.23031998,114200.0,114190.0,0.28611595]
[1760294042183,4.23031998,114200.0,114190.0,0.33564788]
[1760294042184,0.36634098,114200.0,114190.0,0.33564788]
[1760294042420,0.34,114200.0,114190.0,0.91658804]
[1760294044051,0.34,114200.0,114190.0,0.91758804]
[1760294044394,0.34,114200.0,114190.0,0.91858804]
[1760294045834,0.00056403,114220.0,114200.0,0.17513134]
[1760294046041,0.00056403,114220.0,114210.0,0.29270601]
[1760294046478,0.00056403,114220.0,114210.0,0.87364617]
[1760294047242,0.00056403,114220.0,114210.0,0.91572617]
[1760294049333,0.00056403,114220.0,114210.0,0.91672617]
[1760294049716,0.00056403,114220.0,114210.0,0.91772617]
[1760294049905,0.00056403,114220.0,114210.0,1.00644551]
[1760294050854,0.00056403,114220.0,114210.0,0.42550535]
[1760294051057,0.00056403,114220.0,114210.0,1.00644551]
[1760294051491,0.00056403,114220.0,114210.0,0.42550535]
[1760294052031,0.00056403,114220.0,114210.0,1.00644551]
[1760294052482,0.00056403,114220.0,114210.0,0.42550535]
[1760294056971,4.85456371,114220.0,114210.0,0.16167]
[1760294057180,4.22204048,114220.0,114210.0,0.28097601]
[1760294057412,4.22204048,114220.0,114210.0,0.33678601]
[1760294057615,4.18762048,114220.0,114210.0,0.33678601]
[1760294058425,4.18762048,114220.0,114210.0,0.33578601]
[1760294058734,4.18762048,114220.0,114210.0,0.33478601]
[1760294062067,0.38314148,114220.0,114210.0,0.21719601]
[1760294062412,4.45083116,114220.0,114210.0,0.04208]
[1760294062594,4.49978426,114220.0,114210.0,0.04208]
[1760294062992,0.66088526,114220.0,114210.0,0.04208]
[1760294063193,4.49978426,114220.0,114210.0,0.04208]
[1760294064192,0.66088526,114220.0,114210.0,0.04208]
[1760294064342,4.52320636,114220.0,114210.0,0.04208]
[1760294064543,4.55451964,114220.0,114210.0,0.04208]
[1760294064764,4.52320636,114220.0,114210.0,0.04208]
[1760294064990,4.52321149,114220.0,114210.0,0.04208]
[1760294065195,0.68431249,114220.0,114210.0,0.04208]
[1760294065394,4.52321149,114220.0,114210.0,0.04208]
[1760294065846,4.55452477,114220.0,114210.0,0.04208]
[1760294066051,0.71570616,114220.0,114210.0,0.04208]
[1760294066386,4.55460516,114220.0,114210.0,0.04208]
[1760294066542,4.52329188,114220.0,114210.0,0.04208]
[1760294066922,0.68439288,114220.0,114210.0,0.04208]
[1760294067125,4.52329188,114220.0,114210.0,0.04208]
[1760294067877,0.68439288,114220.0,114210.0,0.04208]
[1760294068022,4.52329188,114220.0,114210.0,0.04208]
[1760294068229,4.49978939,114220.0,114210.0,0.04208]
[1760294068644,4.52329188,114220.0,114210.0,0.04208]
[1760294069045,0.68439288,114220.0,114210.0,0.04208]
[1760294069495,4.52329188,114220.0,114210.0,0.04208]
[1760294069670,0.68439288,114220.0,114210.0,0.04208]
[1760294069876,4.52328657,114220.0,114210.0,0.04208]
[1760294071011,4.49978408,114220.0,114210.0,0.04208]
[1760294072242,0.68438757,114220.0,114210.0,0.04208]
[1760294072438,4.52328657,114220.0,114210.0,0.04208]
[1760294074167,4.49978408,114220.0,114210.0,0.04208]
[1760294074773,0.66088508,114220.0,114210.0,0.04208]
[1760294074991,4.49978408,114220.0,114210.0,0.04208]
[1760294075188,0.66088508,114220.0,114210.0,0.04208]
[1760294075425,4.49978408,114220.0,114210.0,0.04208]
[1760294075712,4.52328657,114220.0,114210.0,0.04208]
[1760294075847,0.68438757,114220.0,114210.0,0.04208]
[1760294076053,4.52328657,114220.0,114210.0,0.04208]
[1760294076271,4.49978408,114220.0,114210.0,0.04208]
[1760294076502,4.52328657,114220.0,114210.0,0.04208]
[1760294077145,0.68438757,114220.0,114210.0,0.04208]
[1760294077341,4.52328657,114220.0,114210.0,0.04208]
[1760294078018,0.68438757,114220.0,114210.0,0.04208]
[1760294078186,4.52328657,114220.0,114210.0,0.04208]
[1760294081148,0.68438757,114220.0,114210.0,0.04208]
[1760294081348,4.52328657,114220.0,114210.0,0.04208]
[1760294081557,4.52428657,114220.0,114210.0,0.04208]
[1760294081771,4.55659985,114220.0,114210.0,0.04208]
[1760294081973,4.55559985,114220.0,114210.0,0.04208]
[1760294082378,4.55759985,114220.0,114210.0,0.04208]
[1760294082792,0.51513134,114200.0,114190.0,0.00014927]
[1760294082991,4.42137071,114200.0,114190.0,0.00014927]
[1760294083185,4.50746071,114200.0,114190.0,0.00014927]
[1760294083386,0.66856171,114200.0,114190.0,0.00014927]
[1760294083590,4.53093594,114200.0,114190.0,0.00014927]
[1760294084072,4.53193594,114200.0,114190.0,0.00014927]
[1760294084467,4.53293594,114200.0,114190.0,0.00014927]
[1760294085655,0.69403694,114200.0,114190.0,0.00014927]
[1760294085815,4.53292689,114200.0,114190.0,0.00014927]
[1760294085982,0.69402789,114200.0,114190.0,0.00014927]
[1760294086328,4.56424017,114200.0,114190.0,0.00014927]
[1760294086553,0.72534117,114200.0,114190.0,0.00014927]
[1760294086745,4.56424017,114200.0,114190.0,0.00014927]
[1760294086944,0.72534117,114200.0,114190.0,0.00014927]
[1760294087108,4.56424017,114200.0,114190.0,0.00014927]
[1760294088321,4.54076494,114200.0,114190.0,0.00014927]
[1760294089577,0.51514668,114190.0,114180.0,0.04208]
[1760294089775,4.42031614,114190.0,114180.0,0.04208]
[1760294089978,4.45607614,114190.0,114180.0,0.04208]
[1760294090187,4.50650614,114190.0,114180.0,0.04208]
[1760294091101,4.50650857,114190.0,114180.0,0.04208]
[1760294092442,0.66760957,114190.0,114180.0,0.04208]
[1760294092635,4.50650857,114190.0,114180.0,0.04208]
[1760294092840,4.51434991,114190.0,114180.0,0.04208]
[1760294093102,0.67545091,114190.0,114180.0,0.04208]
[1760294093341,4.51434991,114190.0,114180.0,0.04208]
[1760294095790,0.67545091,114190.0,114180.0,0.04208]
[1760294096152,4.46423543,114190.0,114180.0,0.04208]
[1760294096894,0.62533643,114190.0,114180.0,0.04208]
[1760294097171,4.53790891,114190.0,114180.0,0.04208]
[1760294097327,4.49558585,114190.0,114180.0,0.04208]
[1760294097725,4.53790915,114190.0,114180.0,0.04208]
[1760294098071,0.69901015,114190.0,114180.0,0.04208]
[1760294098367,4.53790915,114190.0,114180.0,0.04208]
[1760294099866,0.69901015,114190.0,114180.0,0.04208]
[1760294100082,4.53790915,114190.0,114180.0,0.04208]
[1760294100284,0.69901015,114190.0,114180.0,0.04208]
[1760294100483,4.36276247,114190.0,114180.0,0.04208]
[1760294100763,3.88170906,114190.0,114180.0,0.28420448]
[1760294100937,3.8390481,114190.0,114180.0,0.33664448]
[1760294101141,4.06181478,114190.0,114180.0,0.10204]
[1760294101347,4.2266681,114190.0,114180.0,0.21724202]
[1760294101549,4.2266681,114190.0,114180.0,0.25217202]
[1760294101753,4.1939681,114190.0,114180.0,0.32964202]
[1760294101953,4.1790481,114190.0,114180.0,0.32964202]
[1760294102305,4.1939681,114190.0,114180.0,0.32964202]
[1760294102500,4.22096023,114190.0,114180.0,0.32964202]
[1760294102747,4.20213831,114190.0,114180.0,0.32964202]
[1760294103124,4.1939681,114190.0,114180.0,0.32964202]
[1760294105432,4.20214755,114190.0,114180.0,0.32964202]
[1760294106095,4.18722755,114190.0,114180.0,0.32964202]
[1760294106297,4.1790481,114190.0,114180.0,0.32964202]
[1760294109658,4.35419478,114190.0,114180.0,0.32964202]
[1760294109841,4.1790481,114190.0,114180.0,0.32964202]
[1760294111066,4.1790481,114190.0,114180.0,0.27720202]
[1760294111067,4.40181478,114190.0,114180.0,0.27720202]
[1760294111241,4.1939681,114190.0,114180.0,0.32964202]
[1760294113315,4.40181478,114190.0,114180.0,0.27720202]
[1760294113502,4.40181478,114190.0,114180.0,0.32964202]
[1760294114493,4.2266681,114190.0,114180.0,0.32964202]
[1760294114696,4.1939681,114190.0,114180.0,0.32964202]
[1760294118623,4.1790481,114190.0,114180.0,0.32964202]
[1760294125005,4.35419478,114190.0,114180.0,0.32964202]
[1760294125206,4.1790481,114190.0,114180.0,0.32964202]
[1760294125529,4.35419478,114190.0,114180.0,0.32964202]
[1760294125769,4.38689478,114190.0,114180.0,0.27720202]
[1760294125972,4.40181478,114190.0,114180.0,0.21724202]
[1760294126135,4.45204478,114190.0,114180.0,0.21724202]
[1760294126810,0.61314578,114190.0,114180.0,0.21724202]
[1760294126948,4.45204478,114190.0,114180.0,0.21724202]
[1760294127881,0.61314578,114190.0,114180.0,0.21724202]
[1760294128084,4.45204478,114190.0,114180.0,0.21724202]
[1760294128291,4.4709631,114190.0,114180.0,0.21724202]
[1760294128450,4.4709631,114190.0,114180.0,0.04208]
[1760294128856,0.6320641,114190.0,114180.0,0.04208]
[1760294129451,4.4709631,114190.0,114180.0,0.04208]
[1760294130082,0.6320641,114190.0,114180.0,0.04208]
[1760294130408,4.4709631,114190.0,114180.0,0.04208]
[1760294130618,0.6320641,114190.0,114180.0,0.04208]
[1760294130833,4.4709631,114190.0,114180.0,0.04208]
[1760294133312,4.4709631,114190.0,114180.0,0.21724202]
[1760294133484,0.5818341,114190.0,114180.0,0.25244202]
[1760294133713,4.4207331,114190.0,114180.0,0.25244202]
[1760294133846,4.4207331,114190.0,114180.0,0.07728]
[1760294134034,0.5818341,114190.0,114180.0,0.25244202]
[1760294134242,4.4207331,114190.0,114180.0,0.25244202]
[1760294134668,4.4207331,114190.0,114180.0,0.21724202]
[1760294135110,0.5818341,114190.0,114180.0,0.04208]
[1760294135316,4.4207331,114190.0,114180.0,0.21724202]
[1760294135660,4.4207331,114190.0,114180.0,0.04208]
[1760294135860,4.4691731,114190.0,114180.0,0.04208]
[1760294136061,0.6302741,114190.0,114180.0,0.04208]
[1760294136267,4.4691731,114190.0,114180.0,0.04208]
[1760294136463,4.499325,114190.0,114180.0,0.04208]
[1760294136665,4.52283789,114190.0,114180.0,0.04208]
[1760294136871,4.55739941,114190.0,114180.0,0.04208]
[1760294137299,0.71850041,114190.0,114180.0,0.04208]
[1760294137500,4.55739941,114190.0,114180.0,0.04208]
[1760294137734,0.71850041,114190.0,114180.0,0.04208]
[1760294137942,4.55739941,114190.0,114180.0,0.04208]
[1760294138138,0.71850041,114190.0,114180.0,0.04208]
[1760294138342,4.55739941,114190.0,114180.0,0.04208]
[1760294138823,0.71850041,114190.0,114180.0,0.04208]
[1760294139029,4.55739941,114190.0,114180.0,0.04208]
[1760294139982,0.74985093,114190.0,114180.0,0.04208]
[1760294140116,0.77336367,114190.0,114180.0,0.04208]
[1760294140311,0.72633804,114190.0,114180.0,0.04208]
[1760294140562,4.56523704,114190.0,114180.0,0.04208]
[1760294140738,0.72633804,114190.0,114180.0,0.04208]
[1760294140938,4.56523704,114190.0,114180.0,0.04208]
[1760294141276,0.72633804,114190.0,114180.0,0.04208]
[1760294141472,4.56523704,114190.0,114180.0,0.04208]
[1760294141911,0.72633804,114190.0,114180.0,0.04208]
[1760294142113,4.58886152,114190.0,114180.0,0.04208]
[1760294144256,0.74996252,114190.0,114180.0,0.04208]
[1760294144589,4.58886152,114190.0,114180.0,0.04208]
[1760294144930,0.74996252,114190.0,114180.0,0.04208]
[1760294145090,4.58886152,114190.0,114180.0,0.04208]
[1760294146840,0.74996252,114190.0,114180.0,0.04208]
[1760294147067,4.58886152,114190.0,114180.0,0.04208]
[1760294147654,0.74996252,114190.0,114180.0,0.04208]
[1760294147954,4.58886152,114190.0,114180.0,0.04208]
[1760294148395,0.74996252,114190.0,114180.0,0.04208]
[1760294148571,4.58886152,114190.0,114180.0,0.04208]
[1760294149374,0.74996252,114190.0,114180.0,0.04208]
[1760294149584,4.58886152,114190.0,114180.0,0.04208]